[Event "Titled Tuesday Blitz March 22 Early 2022"]
[White "Buscar, Michael"]
[Black "Siniauski, Artsiom"]
[WhiteFideId "2603616"]
[BlackFideId "13512269"]
[WhiteElo "2010"]
[BlackElo "2187"]
[Result "1-0"]
[Round "10"]
[TimeControl "180+1"]
[Date "2022.03.22"]
[WhiteClock "0:00:05"]
[BlackClock "0:00:01"]

1. d4 {[%clk 0:02:59]}  Nf6 {[%clk 0:03:00]} 2. c4 {[%clk 0:02:59]}  e6 {[%clk 0:02:59]} 3. Nf3 {[%clk 0:02:57]}  b6 {[%clk 0:02:58]} 4. g3 {[%clk 0:02:56]}  Bb4+ {[%clk 0:02:54]} 5. Bd2 {[%clk 0:02:56]}  Be7 {[%clk 0:02:54]} 6. Nc3 {[%clk 0:02:56]}  Bb7 {[%clk 0:02:52]} 7. Qc2 {[%clk 0:02:47]}  c6 {[%clk 0:02:47]} 8. e4 {[%clk 0:02:46]}  d5 {[%clk 0:02:48]} 9. cxd5 {[%clk 0:02:45]}  cxd5 {[%clk 0:02:49]} 10. e5 {[%clk 0:02:45]}  Nfd7 {[%clk 0:02:38]} 11. Bd3 {[%clk 0:02:43]}  Nc6 {[%clk 0:02:36]} 12. a3 {[%clk 0:02:41]}  h6 {[%clk 0:02:23]} 13. h4 {[%clk 0:02:38]}  a6 {[%clk 0:02:20]} 14. h5 {[%clk 0:02:32]}  b5 {[%clk 0:02:18]} 15. Ne2 {[%clk 0:02:28]}  Rc8 {[%clk 0:02:17]} 16. Qd1 {[%clk 0:02:20]}  Nb6 {[%clk 0:02:10]} 17. Kf1 {[%clk 0:01:57]}  Nc4 {[%clk 0:01:52]} 18. Bc1 {[%clk 0:01:56]}  b4 {[%clk 0:01:42]} 19. Kg2 {[%clk 0:01:53]}  bxa3 {[%clk 0:01:38]} 20. bxa3 {[%clk 0:01:53]}  a5 {[%clk 0:01:34]} 21. Rb1 {[%clk 0:01:42]}  Ba6 {[%clk 0:01:21]} 22. Qa4 {[%clk 0:01:42]}  O-O {[%clk 0:01:17]} 23. Nd2 {[%clk 0:01:03]}  Qd7 {[%clk 0:01:04]} 24. Nf1 {[%clk 0:00:35]}  N6xe5 {[%clk 0:00:57]} 25. Qxd7 {[%clk 0:00:24]}  Nxd7 {[%clk 0:00:58]} 26. Nf4 {[%clk 0:00:17]}  Rb8 {[%clk 0:00:55]} 27. Ra1 {[%clk 0:00:12]}  Bf6 {[%clk 0:00:50]} 28. Be3 {[%clk 0:00:10]}  Nxe3+ {[%clk 0:00:47]} 29. fxe3 {[%clk 0:00:11]}  Rb2+ {[%clk 0:00:41]} 30. Kf3 {[%clk 0:00:10]}  Bc4 {[%clk 0:00:36]} 31. Rh2 {[%clk 0:00:10]}  Rfb8 {[%clk 0:00:33]} 32. Rd2 {[%clk 0:00:08]}  e5 {[%clk 0:00:30]} 33. Bxc4 {[%clk 0:00:04]}  dxc4 {[%clk 0:00:26]} 34. Nd5 {[%clk 0:00:05]}  exd4 {[%clk 0:00:22]} 35. Nxf6+ {[%clk 0:00:05]}  Nxf6 {[%clk 0:00:21]} 36. Rxd4 {[%clk 0:00:05]}  c3 {[%clk 0:00:21]} 37. Rc4 {[%clk 0:00:05]}  c2 {[%clk 0:00:19]} 38. Rc1 {[%clk 0:00:05]}  R8b3 {[%clk 0:00:12]} 39. a4 {[%clk 0:00:05]}  Nd5 {[%clk 0:00:11]} 40. R1xc2 {[%clk 0:00:05]}  Rxc2 {[%clk 0:00:11]} 41. Rxc2 {[%clk 0:00:05]}  Rb4 {[%clk 0:00:11]} 42. Rc8+ {[%clk 0:00:03]}  Kh7 {[%clk 0:00:11]} 43. Rc5 {[%clk 0:00:04]}  Nb6 {[%clk 0:00:11]} 44. Rxa5 {[%clk 0:00:04]}  Nxa4 {[%clk 0:00:11]} 45. Ra7 {[%clk 0:00:04]}  f6 {[%clk 0:00:11]} 46. g4 {[%clk 0:00:05]}  Nc3 {[%clk 0:00:10]} 47. Ng3 {[%clk 0:00:05]}  Kg8 {[%clk 0:00:03]} 48. Nf5 {[%clk 0:00:05]}  Ne4 {[%clk 0:00:04]} 49. Rxg7+ {[%clk 0:00:05]}  Kf8 {[%clk 0:00:04]} 50. Rh7 {[%clk 0:00:04]}  Ng5+ {[%clk 0:00:05]} 51. Kg3 {[%clk 0:00:03]}  Nxh7 {[%clk 0:00:06]} 52. Nxh6 {[%clk 0:00:04]}  Ng5 {[%clk 0:00:05]} 53. Nf5 {[%clk 0:00:04]}  Rb1 {[%clk 0:00:05]} 54. Kf2 {[%clk 0:00:03]}  Kf7 {[%clk 0:00:05]} 55. Ke2 {[%clk 0:00:02]}  Rh1 {[%clk 0:00:03]} 56. Kf2 {[%clk 0:00:02]}  Ke6 {[%clk 0:00:03]} 57. Kg2 {[%clk 0:00:03]}  Ra1 {[%clk 0:00:04]} 58. Kf2 {[%clk 0:00:03]}  Ra2+ {[%clk 0:00:04]} 59. Kg3 {[%clk 0:00:03]}  Ne4+ {[%clk 0:00:04]} 60. Kf4 {[%clk 0:00:03]}  Ng5 {[%clk 0:00:05]} 61. Kg3 {[%clk 0:00:04]}  Ke5 {[%clk 0:00:05]} 62. h6 {[%clk 0:00:04]}  Ra7 {[%clk 0:00:03]} 63. Kh4 {[%clk 0:00:04]}  Ra2 {[%clk 0:00:02]} 64. Kh5 {[%clk 0:00:05]}  Ke6 {[%clk 0:00:01]} 65. Kg6 {[%clk 0:00:06]}  Rh2 {[%clk 0:00:02]} 66. Kg7 {[%clk 0:00:05]}  Ke5 {[%clk 0:00:01]} 67. Ng3 {[%clk 0:00:05]} 1-0


[Site "https://www.chess.com"]

[Event "Titled Tuesday Blitz March 22 Early 2022"]
[White "Ciolacu, Alessia-Mihaela"]
[Black "Ferreira, Vitor Hugo Vieira"]
[WhiteFideId "1252640"]
[BlackFideId "2119765"]
[WhiteElo "1777"]
[BlackElo "2165"]
[Result "1-0"]
[Round "10"]
[TimeControl "180+1"]
[Date "2022.03.22"]
[WhiteClock "0:01:38"]
[BlackClock "0:01:24"]

1. Nf3 {[%clk 0:03:00]}  Nf6 {[%clk 0:02:58]} 2. c4 {[%clk 0:03:00]}  g6 {[%clk 0:02:58]} 3. Nc3 {[%clk 0:03:00]}  Bg7 {[%clk 0:02:59]} 4. d4 {[%clk 0:03:01]}  d6 {[%clk 0:03:00]} 5. Bg5 {[%clk 0:02:59]}  O-O {[%clk 0:03:00]} 6. e3 {[%clk 0:02:59]}  c5 {[%clk 0:02:57]} 7. d5 {[%clk 0:02:59]}  Qa5 {[%clk 0:02:56]} 8. Bd3 {[%clk 0:02:56]}  e6 {[%clk 0:02:55]} 9. dxe6 {[%clk 0:02:54]}  Bxe6 {[%clk 0:02:53]} 10. O-O {[%clk 0:02:55]}  Nc6 {[%clk 0:02:52]} 11. Qe2 {[%clk 0:02:42]}  Rfe8 {[%clk 0:02:50]} 12. a3 {[%clk 0:02:38]}  Rad8 {[%clk 0:02:50]} 13. Rab1 {[%clk 0:02:36]}  h6 {[%clk 0:02:46]} 14. Bh4 {[%clk 0:02:33]}  g5 {[%clk 0:02:46]} 15. Bg3 {[%clk 0:02:33]}  d5 {[%clk 0:02:47]} 16. cxd5 {[%clk 0:02:32]}  Nxd5 {[%clk 0:02:47]} 17. Nxd5 {[%clk 0:02:32]}  Bxd5 {[%clk 0:02:48]} 18. e4 {[%clk 0:02:32]}  f5 {[%clk 0:02:35]} 19. Bc4 {[%clk 0:02:22]}  Rxe4 {[%clk 0:02:29]} 20. Bxd5+ {[%clk 0:02:22]}  Rxd5 {[%clk 0:02:30]} 21. Qc2 {[%clk 0:02:21]}  Qd8 {[%clk 0:02:14]} 22. Rbd1 {[%clk 0:02:17]}  Nd4 {[%clk 0:02:12]} 23. Nxd4 {[%clk 0:02:10]}  Rexd4 {[%clk 0:02:12]} 24. Rxd4 {[%clk 0:02:08]}  cxd4 {[%clk 0:02:08]} 25. Qb3 {[%clk 0:02:08]}  f4 {[%clk 0:02:06]} 26. Rc1 {[%clk 0:02:02]}  fxg3 {[%clk 0:02:06]} 27. Rc5 {[%clk 0:02:01]}  gxf2+ {[%clk 0:02:04]} 28. Kf1 {[%clk 0:01:58]}  Kh8 {[%clk 0:01:41]} 29. Qxd5 {[%clk 0:01:57]}  Qf8 {[%clk 0:01:37]} 30. Qf5 {[%clk 0:01:54]}  Qxf5 {[%clk 0:01:30]} 31. Rxf5 {[%clk 0:01:55]}  d3 {[%clk 0:01:31]} 32. Rd5 {[%clk 0:01:55]}  Bxb2 {[%clk 0:01:31]} 33. Rxd3 {[%clk 0:01:55]}  b5 {[%clk 0:01:29]} 34. Kxf2 {[%clk 0:01:53]}  a5 {[%clk 0:01:29]} 35. Rb3 {[%clk 0:01:53]}  Bc1 {[%clk 0:01:29]} 36. Rxb5 {[%clk 0:01:50]}  Bxa3 {[%clk 0:01:30]} 37. Rxa5 {[%clk 0:01:51]}  Bd6 {[%clk 0:01:29]} 38. Ra6 {[%clk 0:01:45]}  Bf8 {[%clk 0:01:26]} 39. Kf3 {[%clk 0:01:41]}  Kg7 {[%clk 0:01:26]} 40. Kg4 {[%clk 0:01:40]}  Bc5 {[%clk 0:01:25]} 41. Rc6 {[%clk 0:01:39]}  Bg1 {[%clk 0:01:25]} 42. h3 {[%clk 0:01:38]}  Be3 {[%clk 0:01:23]} 43. Kh5 {[%clk 0:01:38]}  Bd2 {[%clk 0:01:23]} 44. Rxh6 {[%clk 0:01:37]}  g4 {[%clk 0:01:24]} 45. Rg6+ {[%clk 0:01:38]}  Kf7 {[%clk 0:01:24]} 46. Rxg4 {[%clk 0:01:38]} 1-0


[Site "https://www.chess.com"]

[Event "Titled Tuesday Blitz March 22 Early 2022"]
[White "Cramling Bellon, Anna"]
[Black "Saim, Mohamed Ilias"]
[WhiteFideId "32009232"]
[BlackFideId "7900465"]
[WhiteElo "1905"]
[BlackElo "2006"]
[Result "0-1"]
[Round "10"]
[TimeControl "180+1"]
[Date "2022.03.22"]
[WhiteClock "0:00:01"]
[BlackClock "0:00:16"]

1. d4 {[%clk 0:03:00]}  Nf6 {[%clk 0:02:58]} 2. c4 {[%clk 0:03:00]}  g6 {[%clk 0:02:57]} 3. Nc3 {[%clk 0:03:00]}  Bg7 {[%clk 0:02:56]} 4. e4 {[%clk 0:02:58]}  d6 {[%clk 0:02:56]} 5. h3 {[%clk 0:02:57]}  Nbd7 {[%clk 0:02:50]} 6. Bg5 {[%clk 0:02:57]}  h6 {[%clk 0:02:49]} 7. Be3 {[%clk 0:02:57]}  e5 {[%clk 0:02:48]} 8. d5 {[%clk 0:02:56]}  O-O {[%clk 0:02:43]} 9. Nf3 {[%clk 0:02:55]}  Nh5 {[%clk 0:02:32]} 10. g3 {[%clk 0:02:51]}  a5 {[%clk 0:02:27]} 11. Be2 {[%clk 0:02:44]}  b6 {[%clk 0:02:18]} 12. Nh4 {[%clk 0:02:42]}  Nhf6 {[%clk 0:02:03]} 13. Qd2 {[%clk 0:02:40]}  Kh7 {[%clk 0:02:01]} 14. O-O-O {[%clk 0:02:24]}  Nc5 {[%clk 0:02:01]} 15. Qc2 {[%clk 0:02:18]}  a4 {[%clk 0:01:55]} 16. f4 {[%clk 0:02:12]}  exf4 {[%clk 0:01:51]} 17. gxf4 {[%clk 0:01:58]}  a3 {[%clk 0:01:45]} 18. b3 {[%clk 0:01:54]}  Ncxe4 {[%clk 0:01:33]} 19. Nxe4 {[%clk 0:01:47]}  Nxe4 {[%clk 0:01:32]} 20. Nxg6 {[%clk 0:01:45]}  fxg6 {[%clk 0:01:33]} 21. Qxe4 {[%clk 0:01:43]}  Bf5 {[%clk 0:01:32]} 22. Qg2 {[%clk 0:01:42]}  Bb2+ {[%clk 0:01:13]} 23. Kd2 {[%clk 0:01:38]}  Qf6 {[%clk 0:01:12]} 24. Ke1 {[%clk 0:01:29]}  Rae8 {[%clk 0:01:05]} 25. Qg3 {[%clk 0:01:11]}  Re7 {[%clk 0:00:48]} 26. Bd2 {[%clk 0:00:25]}  Rfe8 {[%clk 0:00:45]} 27. Rh2 {[%clk 0:00:24]}  Bc2 {[%clk 0:00:28]} 28. Rc1 {[%clk 0:00:12]}  Bxc1 {[%clk 0:00:24]} 29. Bxc1 {[%clk 0:00:13]}  Qa1 {[%clk 0:00:22]} 30. Kd2 {[%clk 0:00:11]}  Bf5 {[%clk 0:00:20]} 31. Bxa3 {[%clk 0:00:02]}  Qxa2+ {[%clk 0:00:19]} 32. Kc3 {[%clk 0:00:03]}  Qxa3 {[%clk 0:00:18]} 33. Bg4 {[%clk 0:00:01]}  Re3+ {[%clk 0:00:16]} 0-1


[Site "https://www.chess.com"]

[Event "Titled Tuesday Blitz March 22 Early 2022"]
[White "Cupid, Kevin"]
[Black "Yang, Kevin"]
[WhiteFideId "7700512"]
[BlackFideId "30908485"]
[WhiteElo "2096"]
[BlackElo "2055"]
[Result "1-0"]
[Round "10"]
[TimeControl "180+1"]
[Date "2022.03.22"]
[WhiteClock "0:00:07"]
[BlackClock "0:00:07"]

1. d4 {[%clk 0:02:02]}  Nf6 {[%clk 0:02:55]} 2. c4 {[%clk 0:02:03]}  e6 {[%clk 0:02:55]} 3. Nf3 {[%clk 0:02:02]}  c5 {[%clk 0:02:54]} 4. dxc5 {[%clk 0:01:57]}  Bxc5 {[%clk 0:02:53]} 5. e3 {[%clk 0:01:57]}  O-O {[%clk 0:02:52]} 6. a3 {[%clk 0:01:53]}  a5 {[%clk 0:02:52]} 7. Bd3 {[%clk 0:01:48]}  b6 {[%clk 0:02:47]} 8. O-O {[%clk 0:01:48]}  Bb7 {[%clk 0:02:44]} 9. b3 {[%clk 0:01:48]}  d5 {[%clk 0:02:40]} 10. Nbd2 {[%clk 0:01:37]}  Re8 {[%clk 0:02:31]} 11. Bb2 {[%clk 0:01:36]}  Nbd7 {[%clk 0:02:29]} 12. cxd5 {[%clk 0:01:27]}  exd5 {[%clk 0:02:24]} 13. Rc1 {[%clk 0:01:25]}  Ne4 {[%clk 0:02:20]} 14. Bb5 {[%clk 0:01:22]}  Nd6 {[%clk 0:02:14]} 15. Bd3 {[%clk 0:01:14]}  Qe7 {[%clk 0:02:04]} 16. Qc2 {[%clk 0:01:06]}  Ne4 {[%clk 0:01:46]} 17. Bb5 {[%clk 0:00:43]}  Rec8 {[%clk 0:01:40]} 18. Qd3 {[%clk 0:00:39]}  Ndf6 {[%clk 0:01:32]} 19. a4 {[%clk 0:00:36]}  Ba3 {[%clk 0:01:23]} 20. Rxc8+ {[%clk 0:00:29]}  Rxc8 {[%clk 0:01:22]} 21. Bd4 {[%clk 0:00:27]}  Bc5 {[%clk 0:01:12]} 22. Ba1 {[%clk 0:00:22]}  Nd6 {[%clk 0:01:07]} 23. Ba6 {[%clk 0:00:20]}  Bb4 {[%clk 0:00:47]} 24. Bxb7 {[%clk 0:00:17]}  Nxb7 {[%clk 0:00:45]} 25. Bxf6 {[%clk 0:00:17]}  Qxf6 {[%clk 0:00:44]} 26. Qxd5 {[%clk 0:00:18]}  Nc5 {[%clk 0:00:44]} 27. Ne4 {[%clk 0:00:17]}  Nxe4 {[%clk 0:00:41]} 28. Qxe4 {[%clk 0:00:18]}  h5 {[%clk 0:00:36]} 29. Nd4 {[%clk 0:00:17]}  g6 {[%clk 0:00:33]} 30. h3 {[%clk 0:00:17]}  Kg7 {[%clk 0:00:33]} 31. Qb7 {[%clk 0:00:16]}  Rc3 {[%clk 0:00:30]} 32. Qd5 {[%clk 0:00:14]}  Bc5 {[%clk 0:00:28]} 33. Nb5 {[%clk 0:00:14]}  Rc2 {[%clk 0:00:24]} 34. Nd4 {[%clk 0:00:12]}  Rb2 {[%clk 0:00:22]} 35. g4 {[%clk 0:00:09]}  hxg4 {[%clk 0:00:15]} 36. hxg4 {[%clk 0:00:10]}  Qh4 {[%clk 0:00:15]} 37. Qe5+ {[%clk 0:00:08]}  Kh7 {[%clk 0:00:15]} 38. Qf4 {[%clk 0:00:06]}  Kg8 {[%clk 0:00:10]} 39. Kg2 {[%clk 0:00:04]}  Bxd4 {[%clk 0:00:08]} 40. Qxd4 {[%clk 0:00:04]}  Rxb3 {[%clk 0:00:08]} 41. Rh1 {[%clk 0:00:04]}  Rb4 {[%clk 0:00:04]} 42. Rxh4 {[%clk 0:00:03]}  Rxd4 {[%clk 0:00:04]} 43. exd4 {[%clk 0:00:04]}  Kf8 {[%clk 0:00:05]} 44. Rh1 {[%clk 0:00:04]}  Ke7 {[%clk 0:00:05]} 45. Rc1 {[%clk 0:00:05]}  Kd6 {[%clk 0:00:06]} 46. Kf3 {[%clk 0:00:05]}  Kd5 {[%clk 0:00:07]} 47. Ke3 {[%clk 0:00:06]}  f5 {[%clk 0:00:07]} 48. gxf5 {[%clk 0:00:06]}  gxf5 {[%clk 0:00:07]} 49. f4 {[%clk 0:00:07]} 1-0


[Site "https://www.chess.com"]

[Event "Titled Tuesday Blitz March 22 Early 2022"]
[White "Dahlgren, James Allen"]
[Black "Schrik, Rachid"]
[WhiteFideId "22256873"]
[BlackFideId "1009818"]
[WhiteElo "2129"]
[BlackElo "2070"]
[Result "0-1"]
[Round "10"]
[TimeControl "180+1"]
[Date "2022.03.22"]
[WhiteClock "0:00:13"]
[BlackClock "0:00:21"]

1. d3 {[%clk 0:02:59]}  e5 {[%clk 0:02:59]} 2. f4 {[%clk 0:02:58]}  Nc6 {[%clk 0:02:48]} 3. Nf3 {[%clk 0:02:58]}  Bd6 {[%clk 0:02:37]} 4. f5 {[%clk 0:02:56]}  Nf6 {[%clk 0:02:31]} 5. e4 {[%clk 0:02:55]}  Bc5 {[%clk 0:02:28]} 6. c3 {[%clk 0:02:15]}  d5 {[%clk 0:02:24]} 7. b4 {[%clk 0:01:53]}  dxe4 {[%clk 0:02:19]} 8. bxc5 {[%clk 0:01:52]}  exf3 {[%clk 0:02:14]} 9. Qxf3 {[%clk 0:01:53]}  Qe7 {[%clk 0:02:06]} 10. Be3 {[%clk 0:01:03]}  e4 {[%clk 0:01:52]} 11. dxe4 {[%clk 0:00:58]}  Nxe4 {[%clk 0:01:51]} 12. Bb5 {[%clk 0:00:52]}  O-O {[%clk 0:00:55]} 13. O-O {[%clk 0:00:52]}  Bd7 {[%clk 0:00:22]} 14. Na3 {[%clk 0:00:13]}  Rfe8 {[%clk 0:00:21]} 0-1


[Site "https://www.chess.com"]

[Event "Titled Tuesday Blitz March 22 Early 2022"]
[White "Donchenko, Alexander"]
[Black "Jumabayev, Rinat"]
[WhiteFideId "24603295"]
[BlackFideId "13702661"]
[WhiteElo "2539"]
[BlackElo "2561"]
[Result "1-0"]
[Round "10"]
[TimeControl "180+1"]
[Date "2022.03.22"]
[WhiteClock "0:00:36"]
[BlackClock "0:00:01"]

1. Nf3 {[%clk 0:03:00]}  c5 {[%clk 0:02:58]} 2. c4 {[%clk 0:03:00]}  Nf6 {[%clk 0:02:55]} 3. g3 {[%clk 0:03:00]}  d5 {[%clk 0:02:55]} 4. Bg2 {[%clk 0:02:59]}  d4 {[%clk 0:02:54]} 5. b4 {[%clk 0:02:59]}  Qc7 {[%clk 0:02:46]} 6. Qb3 {[%clk 0:02:39]}  e5 {[%clk 0:02:45]} 7. d3 {[%clk 0:02:38]}  cxb4 {[%clk 0:02:39]} 8. a3 {[%clk 0:02:38]}  a5 {[%clk 0:02:39]} 9. axb4 {[%clk 0:02:31]}  Bxb4+ {[%clk 0:02:39]} 10. Bd2 {[%clk 0:02:31]}  Na6 {[%clk 0:02:39]} 11. O-O {[%clk 0:02:30]}  O-O {[%clk 0:02:36]} 12. Na3 {[%clk 0:02:26]}  Bd7 {[%clk 0:02:28]} 13. Rfb1 {[%clk 0:02:19]}  Rab8 {[%clk 0:02:19]} 14. Bxb4 {[%clk 0:02:11]}  Nxb4 {[%clk 0:02:18]} 15. Nc2 {[%clk 0:02:11]}  Nxc2 {[%clk 0:02:15]} 16. Qxc2 {[%clk 0:02:12]}  b5 {[%clk 0:02:12]} 17. Nd2 {[%clk 0:02:06]}  b4 {[%clk 0:02:05]} 18. c5 {[%clk 0:01:59]}  Rfc8 {[%clk 0:01:59]} 19. c6 {[%clk 0:01:58]}  Bg4 {[%clk 0:01:08]} 20. Nc4 {[%clk 0:01:45]}  Rb5 {[%clk 0:01:07]} 21. Ra4 {[%clk 0:01:31]}  Nd5 {[%clk 0:00:53]} 22. Bxd5 {[%clk 0:01:08]}  Rxd5 {[%clk 0:00:51]} 23. Qa2 {[%clk 0:01:05]}  Qxc6 {[%clk 0:00:37]} 24. Nb6 {[%clk 0:01:05]}  Qxb6 {[%clk 0:00:03]} 25. Qxd5 {[%clk 0:01:05]}  Rc5 {[%clk 0:00:02]} 26. Qe4 {[%clk 0:00:39]}  Bd7 {[%clk 0:00:01]} 27. Qa8+ {[%clk 0:00:36]} 1-0


[Site "https://www.chess.com"]

[Event "Titled Tuesday Blitz March 22 Early 2022"]
[White "Fiol, Fabrice"]
[Black "Stefanov, Plamen"]
[WhiteFideId "611670"]
[BlackFideId "2900980"]
[WhiteElo "2431"]
[BlackElo "2137"]
[Result "1-0"]
[Round "10"]
[TimeControl "180+1"]
[Date "2022.03.22"]
[WhiteClock "0:00:02"]
[BlackClock "0:00:01"]

1. e4 {[%clk 0:03:00]}  d5 {[%clk 0:02:59]} 2. exd5 {[%clk 0:03:01]}  Nf6 {[%clk 0:03:00]} 3. Nf3 {[%clk 0:03:01]}  Nxd5 {[%clk 0:02:59]} 4. h3 {[%clk 0:03:00]}  Bf5 {[%clk 0:02:58]} 5. a3 {[%clk 0:02:58]}  e6 {[%clk 0:02:58]} 6. d4 {[%clk 0:02:58]}  Be7 {[%clk 0:02:58]} 7. Bd3 {[%clk 0:02:52]}  Bg6 {[%clk 0:02:56]} 8. c4 {[%clk 0:02:51]}  Nb6 {[%clk 0:02:56]} 9. O-O {[%clk 0:02:46]}  O-O {[%clk 0:02:55]} 10. Be3 {[%clk 0:02:42]}  Nc6 {[%clk 0:02:54]} 11. Bxg6 {[%clk 0:02:34]}  hxg6 {[%clk 0:02:53]} 12. Qc2 {[%clk 0:02:34]}  Bf6 {[%clk 0:02:52]} 13. Rd1 {[%clk 0:02:34]}  Qe7 {[%clk 0:02:45]} 14. b4 {[%clk 0:02:29]}  Rfd8 {[%clk 0:02:37]} 15. c5 {[%clk 0:02:13]}  Nd5 {[%clk 0:02:36]} 16. Nc3 {[%clk 0:02:12]}  Nxe3 {[%clk 0:02:27]} 17. fxe3 {[%clk 0:02:10]}  e5 {[%clk 0:02:27]} 18. d5 {[%clk 0:02:05]}  e4 {[%clk 0:02:25]} 19. Nxe4 {[%clk 0:00:50]}  Bxa1 {[%clk 0:02:23]} 20. d6 {[%clk 0:00:45]}  cxd6 {[%clk 0:02:16]} 21. cxd6 {[%clk 0:00:44]}  Qe6 {[%clk 0:01:58]} 22. Rxa1 {[%clk 0:00:44]}  f5 {[%clk 0:01:55]} 23. Nc5 {[%clk 0:00:41]}  Qxe3+ {[%clk 0:01:54]} 24. Kh1 {[%clk 0:00:38]}  Rxd6 {[%clk 0:01:53]} 25. Nxb7 {[%clk 0:00:35]}  Rf6 {[%clk 0:01:34]} 26. Re1 {[%clk 0:00:30]}  Qf4 {[%clk 0:01:26]} 27. Qb3+ {[%clk 0:00:18]}  Kh7 {[%clk 0:01:23]} 28. Nc5 {[%clk 0:00:11]}  g5 {[%clk 0:01:16]} 29. Ne6 {[%clk 0:00:08]}  Rxe6 {[%clk 0:00:58]} 30. Qxe6 {[%clk 0:00:07]}  Nd8 {[%clk 0:00:33]} 31. Qe7 {[%clk 0:00:04]}  Kg6 {[%clk 0:00:25]} 32. Ne5+ {[%clk 0:00:04]}  Kh6 {[%clk 0:00:20]} 33. Qe8 {[%clk 0:00:02]}  Nf7 {[%clk 0:00:17]} 34. Qxf7 {[%clk 0:00:02]}  Qxe5 {[%clk 0:00:06]} 35. Rxe5 {[%clk 0:00:01]}  Rd8 {[%clk 0:00:02]} 36. Re6+ {[%clk 0:00:02]}  Kh7 {[%clk 0:00:01]} 37. Kh2 {[%clk 0:00:02]} 1-0


[Site "https://www.chess.com"]

[Event "Titled Tuesday Blitz March 22 Early 2022"]
[White "Garv Gaur"]
[Black "Kouskoutis, Georgios-Alexandros"]
[WhiteFideId "45030839"]
[BlackFideId "4234049"]
[WhiteElo "1950"]
[BlackElo "2130"]
[Result "1-0"]
[Round "10"]
[TimeControl "180+1"]
[Date "2022.03.22"]
[WhiteClock "0:00:16"]
[BlackClock "0:00:02"]

1. d4 {[%clk 0:03:00]}  Nf6 {[%clk 0:02:59]} 2. Nf3 {[%clk 0:03:00]}  d5 {[%clk 0:02:59]} 3. c4 {[%clk 0:03:01]}  e6 {[%clk 0:02:59]} 4. g3 {[%clk 0:03:01]}  Be7 {[%clk 0:02:59]} 5. Bg2 {[%clk 0:03:01]}  O-O {[%clk 0:02:59]} 6. O-O {[%clk 0:03:01]}  c6 {[%clk 0:03:00]} 7. Qc2 {[%clk 0:02:59]}  b6 {[%clk 0:02:58]} 8. Nbd2 {[%clk 0:02:59]}  Bb7 {[%clk 0:02:58]} 9. e4 {[%clk 0:02:59]}  Na6 {[%clk 0:02:59]} 10. a3 {[%clk 0:02:57]}  dxc4 {[%clk 0:02:55]} 11. Nxc4 {[%clk 0:02:52]}  c5 {[%clk 0:02:55]} 12. e5 {[%clk 0:02:42]}  Nd5 {[%clk 0:02:51]} 13. dxc5 {[%clk 0:02:31]}  Nxc5 {[%clk 0:02:52]} 14. b4 {[%clk 0:02:30]}  Nd7 {[%clk 0:02:44]} 15. Rd1 {[%clk 0:02:25]}  Qc7 {[%clk 0:02:41]} 16. Qb3 {[%clk 0:02:18]}  Rac8 {[%clk 0:02:38]} 17. Ne3 {[%clk 0:01:38]}  Nxe3 {[%clk 0:01:46]} 18. Bxe3 {[%clk 0:01:38]}  Bd5 {[%clk 0:01:46]} 19. Rxd5 {[%clk 0:01:28]}  exd5 {[%clk 0:01:47]} 20. Qxd5 {[%clk 0:01:29]}  Qc6 {[%clk 0:01:12]} 21. Qxc6 {[%clk 0:01:19]}  Rxc6 {[%clk 0:01:13]} 22. Nd4 {[%clk 0:01:19]}  Rc7 {[%clk 0:01:01]} 23. Bf4 {[%clk 0:01:12]}  g5 {[%clk 0:00:56]} 24. Nf5 {[%clk 0:01:05]}  gxf4 {[%clk 0:00:32]} 25. Nxe7+ {[%clk 0:01:04]}  Kh8 {[%clk 0:00:31]} 26. Nd5 {[%clk 0:01:03]}  Rc2 {[%clk 0:00:29]} 27. gxf4 {[%clk 0:01:02]}  Rd8 {[%clk 0:00:25]} 28. Rd1 {[%clk 0:00:55]}  Nf8 {[%clk 0:00:21]} 29. f5 {[%clk 0:00:55]}  h5 {[%clk 0:00:09]} 30. f4 {[%clk 0:00:54]}  h4 {[%clk 0:00:09]} 31. h3 {[%clk 0:00:45]}  Kg7 {[%clk 0:00:09]} 32. Re1 {[%clk 0:00:43]}  Rxg2+ {[%clk 0:00:09]} 33. Kxg2 {[%clk 0:00:42]}  Rxd5 {[%clk 0:00:09]} 34. e6 {[%clk 0:00:40]}  Rd2+ {[%clk 0:00:06]} 35. Kf3 {[%clk 0:00:35]}  Nd7 {[%clk 0:00:04]} 36. exd7 {[%clk 0:00:27]}  Rxd7 {[%clk 0:00:05]} 37. Re3 {[%clk 0:00:27]}  Kf6 {[%clk 0:00:05]} 38. Kg4 {[%clk 0:00:27]}  Rd4 {[%clk 0:00:04]} 39. Rc3 {[%clk 0:00:25]}  Kg7 {[%clk 0:00:03]} 40. Kg5 {[%clk 0:00:23]}  a5 {[%clk 0:00:02]} 41. f6+ {[%clk 0:00:22]}  Kh7 {[%clk 0:00:01]} 42. bxa5 {[%clk 0:00:21]}  Rd5+ {[%clk 0:00:01]} 43. f5 {[%clk 0:00:21]}  Rxa5 {[%clk 0:00:02]} 44. Rc4 {[%clk 0:00:18]}  Rxa3 {[%clk 0:00:02]} 45. Rxh4+ {[%clk 0:00:19]}  Kg8 {[%clk 0:00:02]} 46. Rb4 {[%clk 0:00:19]}  Rg3+ {[%clk 0:00:03]} 47. Kh4 {[%clk 0:00:17]}  Rf3 {[%clk 0:00:02]} 48. Kg4 {[%clk 0:00:17]}  Rf1 {[%clk 0:00:02]} 49. Rxb6 {[%clk 0:00:17]}  Rg1+ {[%clk 0:00:03]} 50. Kh5 {[%clk 0:00:18]}  Rg3 {[%clk 0:00:02]} 51. h4 {[%clk 0:00:17]}  Rf3 {[%clk 0:00:02]} 52. Kg5 {[%clk 0:00:17]}  Kh7 {[%clk 0:00:02]} 53. Rb7 {[%clk 0:00:17]}  Rg3+ {[%clk 0:00:02]} 54. Kh5 {[%clk 0:00:17]}  Kg8 {[%clk 0:00:02]} 55. Kh6 {[%clk 0:00:16]} 1-0


[Site "https://www.chess.com"]

[Event "Titled Tuesday Blitz March 22 Early 2022"]
[White "Hamitevici, Vladimir"]
[Black "Salinas Herrera, Pablo"]
[WhiteFideId "13902393"]
[BlackFideId "3407128"]
[WhiteElo "2359"]
[BlackElo "2541"]
[Result "0-1"]
[Round "10"]
[TimeControl "180+1"]
[Date "2022.03.22"]
[WhiteClock "0:00:25"]
[BlackClock "0:00:28"]

1. d4 {[%clk 0:02:59]}  d5 {[%clk 0:03:00]} 2. c4 {[%clk 0:02:59]}  e6 {[%clk 0:02:59]} 3. Nc3 {[%clk 0:02:59]}  Nf6 {[%clk 0:03:00]} 4. cxd5 {[%clk 0:02:57]}  exd5 {[%clk 0:03:01]} 5. Bg5 {[%clk 0:02:51]}  c6 {[%clk 0:03:00]} 6. e3 {[%clk 0:02:49]}  h6 {[%clk 0:02:59]} 7. Bh4 {[%clk 0:02:48]}  Bd6 {[%clk 0:02:59]} 8. Bd3 {[%clk 0:02:45]}  O-O {[%clk 0:03:00]} 9. Nge2 {[%clk 0:02:43]}  Re8 {[%clk 0:02:59]} 10. Bg3 {[%clk 0:02:16]}  a5 {[%clk 0:02:58]} 11. O-O {[%clk 0:02:11]}  Na6 {[%clk 0:02:58]} 12. Rc1 {[%clk 0:02:11]}  Nc7 {[%clk 0:02:51]} 13. Bb1 {[%clk 0:02:09]}  Bg4 {[%clk 0:02:51]} 14. f3 {[%clk 0:02:06]}  Bxg3 {[%clk 0:02:37]} 15. Nxg3 {[%clk 0:02:02]}  Bd7 {[%clk 0:02:37]} 16. e4 {[%clk 0:02:00]}  Ne6 {[%clk 0:02:35]} 17. e5 {[%clk 0:01:51]}  Nh7 {[%clk 0:02:35]} 18. f4 {[%clk 0:01:46]}  Qb6 {[%clk 0:02:35]} 19. Nce2 {[%clk 0:01:42]}  Qxb2 {[%clk 0:02:31]} 20. Qd3 {[%clk 0:01:32]}  Nef8 {[%clk 0:02:24]} 21. f5 {[%clk 0:01:28]}  Ng5 {[%clk 0:02:08]} 22. h4 {[%clk 0:01:23]}  Ne4 {[%clk 0:01:49]} 23. Nxe4 {[%clk 0:01:23]}  dxe4 {[%clk 0:01:49]} 24. Qxe4 {[%clk 0:01:23]}  c5 {[%clk 0:01:50]} 25. Rxc5 {[%clk 0:01:21]}  Bc6 {[%clk 0:01:50]} 26. Qe3 {[%clk 0:01:10]}  Rad8 {[%clk 0:01:48]} 27. f6 {[%clk 0:01:06]}  gxf6 {[%clk 0:00:58]} 28. Rc2 {[%clk 0:00:51]}  Qb4 {[%clk 0:00:51]} 29. Qxh6 {[%clk 0:00:48]}  Rxd4 {[%clk 0:00:44]} 30. a3 {[%clk 0:00:26]}  Rxh4 {[%clk 0:00:27]} 31. Qxf8+ {[%clk 0:00:25]}  Qxf8 {[%clk 0:00:28]} 0-1


[Site "https://www.chess.com"]